fUSD/lending_fUSD_20240518
["ID","MTS","AMOUNT","RATE_DAILY","PERIOD"]
[327424406,1716064270347,-312.32644835,0.00027945,2]
[327424407,1716064270356,-500.0,0.00027945,2]
[327424408,1716064270366,-500.0,0.00027945,2]
[327424409,1716064270375,-654.38,0.00027945,2]
[327424410,1716064270384,-500.0,0.00027945,2]
[327424411,1716064270393,-2068.33,0.00027945,2]
[327424412,1716064270403,-500.0,0.00027945,2]
[327424413,1716064270412,-500.0,0.00027945,2]
[327424414,1716064270421,-1067.86,0.00027945,2]
[327424415,1716064270430,-500.0,0.00027945,2]
[327424416,1716064270439,-500.0,0.00027945,2]
[327424417,1716064270448,-175.82896026,0.00027945,2]
[327424418,1716064270458,-500.0,0.00027945,2]
[327424419,1716064270467,-569.14,0.00027945,2]
[327424420,1716064270476,-500.0,0.00027945,2]
[327424421,1716064270485,-500.0,0.00027945,2]
[327424422,1716064270495,-500.0,0.00027945,2]
[327424423,1716064270504,-500.0,0.00027945,2]
[327424424,1716064270513,-500.0,0.00027945,2]
[327424425,1716064270522,-169.915346,0.00027945,7]
[327424426,1716064270531,-500.0,0.00027945,2]
[327424427,1716064270541,-500.0,0.00027945,2]
[327424428,1716064270550,-739.53,0.00027945,2]
[327424429,1716064270560,-500.0,0.00027945,2]
[327424430,1716064270569,-1162.97,0.00027945,2]
[327424431,1716064270579,-916.72,0.00027945,2]
[327424432,1716064270588,-169.915346,0.00027945,7]
[327424433,1716064270598,-586.14,0.00027945,2]
[327424434,1716064270607,-524.94569545,0.00027945,2]
[327424435,1716064270616,-1575.56,0.00027945,2]
[327424436,1716064270630,-560.47,0.00027945,2]
[327424437,1716064270638,-1565.63,0.00027945,2]
[327424438,1716064270648,-768.19,0.00027945,2]
[327424439,1716064270657,-500.0,0.00027945,2]
[327424440,1716064270667,-500.0,0.00027945,2]
[327424441,1716064270677,-500.0,0.00027945,2]
[327424442,1716064270686,-500.0,0.00027945,2]
[327424443,1716064270695,-500.0,0.00027945,2]
[327424444,1716064270707,-500.0,0.00027945,2]
[327424445,1716064270716,-512.06155195,0.00027945,2]
[327424446,1716064270724,-1008.64,0.00027945,2]
[327424447,1716064270733,-500.0,0.00027945,2]
[327424448,1716064270742,-517.27,0.00027945,2]
[327424449,1716064270752,-500.0,0.00027945,2]
[327424450,1716064270761,-500.0,0.00027945,2]
[327424451,1716064270770,-1479.81,0.00027945,2]
[327424452,1716064270780,-151.0,0.00027945,7]
[327424453,1716064270789,-500.0,0.00027945,2]
[327424454,1716064270799,-500.0,0.00027945,2]
[327424455,1716064270808,-1048.87,0.00027945,2]
[327424456,1716064270818,-500.0,0.00027945,2]
[327424457,1716064270827,-500.0,0.00027945,2]
[327424458,1716064270836,-500.0,0.00027945,2]
[327424459,1716064270847,-500.0,0.00027945,2]
[327424460,1716064270856,-517.98,0.00027945,2]
[327424461,1716064270865,-1183.88,0.00027945,2]
[327424462,1716064270875,-686.46,0.00027945,2]
[327424463,1716064270884,-500.0,0.00027945,2]
[327424464,1716064270894,-506.05,0.00027945,2]
[327424465,1716064270904,-500.0,0.00027945,2]
[327424466,1716064270913,-1157.68,0.00027945,2]
[327424467,1716064270922,-500.0,0.00027945,2]
[327424468,1716064270932,-500.0,0.00027945,2]
[327424469,1716064270942,-500.0,0.00027945,2]
[327424470,1716064270951,-551.29,0.00027945,2]
[327424471,1716064270962,-794.29,0.00027945,2]
[327424472,1716064270972,-500.0,0.00027945,2]
[327424473,1716064270982,-1468.53,0.00027945,2]
[327424474,1716064270991,-500.0,0.00027945,2]
[327424475,1716064271000,-500.0,0.00027945,2]
[327424476,1716064271130,-500.0,0.00027945,2]
[327424477,1716064271140,-507.61159835,0.00027945,2]
[327424478,1716064271149,-500.0,0.00027945,2]
[327424479,1716064271159,-500.0,0.00027945,2]
[327424480,1716064271168,-500.0,0.00027945,2]
[327424481,1716064271178,-552.01,0.00027945,2]
[327424482,1716064271187,-500.0,0.00027945,2]
[327424483,1716064271196,-500.0,0.00027945,2]
[327424484,1716064271206,-500.0,0.00027945,2]
[327424485,1716064271215,-500.0,0.00027945,2]
[327424486,1716064271224,-500.0,0.00027945,2]
[327424487,1716064271233,-500.0,0.00027945,2]
[327424488,1716064271243,-151.0,0.00027945,7]
[327424489,1716064271252,-500.0,0.00027945,2]
[327424490,1716064271261,-1521.91,0.00027945,2]
[327424491,1716064271271,-1487.2,0.00027945,2]
[327424492,1716064271280,-500.0,0.00027945,2]
[327424493,1716064271289,-1083.77,0.00027945,2]
[327424494,1716064271298,-912.04,0.00027945,2]
[327424495,1716064271307,-500.0,0.00027945,2]
[327424496,1716064271317,-500.0,0.00027945,2]
[327424497,1716064271326,-500.0,0.00027945,2]
[327424498,1716064271335,-1984.31,0.00027945,2]
[327424499,1716064271345,-500.0,0.00027945,2]
[327424500,1716064271354,-500.0,0.00027945,2]
[327424501,1716064271363,-500.0,0.00027945,2]
[327424502,1716064271373,-500.0,0.00027945,2]
[327424503,1716064271383,-641.45,0.00027945,2]
[327424504,1716064271393,-500.0,0.00027945,2]
[327424505,1716064271402,-500.0,0.00027945,2]
[327424506,1716064271411,-500.0,0.00027945,2]
[327424507,1716064271421,-500.0,0.00027945,2]
[327424508,1716064271430,-500.0,0.00027945,2]
[327424509,1716064271439,-500.0,0.00027945,2]
[327424510,1716064271448,-500.0,0.00027945,2]
[327424511,1716064271457,-500.0,0.00027945,2]
[327424512,1716064271466,-1410.69,0.00027945,2]
[327424513,1716064271476,-1397.66,0.00027945,2]
[327424514,1716064271486,-500.0,0.00027945,2]
[327424515,1716064271495,-948.25,0.00027945,2]
[327424516,1716064271504,-500.0,0.00027945,2]
[327424517,1716064271513,-962.85,0.00027945,2]
[327424518,1716064271522,-500.0,0.00027945,2]
[327424519,1716064271532,-151.0,0.00027945,7]
[327424520,1716064271541,-500.0,0.00027945,2]
[327424521,1716064271551,-1221.27,0.00027945,2]
[327424522,1716064271560,-500.0,0.00027945,2]
[327424523,1716064271569,-500.0,0.00027945,2]
[327424524,1716064271578,-151.0,0.00027945,7]
[327424525,1716064271587,-764.57,0.00027945,2]
[327424526,1716064271597,-500.0,0.00027945,2]
[327424527,1716064271606,-1371.78,0.00027945,2]
[327424528,1716064271615,-500.0,0.00027945,2]
[327424529,1716064271629,-404.269076,0.00027945,7]
[327424530,1716064271638,-500.0,0.00027945,2]
[327424531,1716064271647,-500.0,0.00027945,2]
[327424532,1716064271656,-500.0,0.00027945,2]
[327424533,1716064271667,-500.0,0.00027945,2]
[327424534,1716064271676,-500.0,0.00027945,2]
[327424535,1716064271686,-404.269076,0.00027945,7]
[327424536,1716064271696,-500.0,0.00027945,2]
[327424537,1716064271706,-990.76,0.00027945,2]
[327424538,1716064271716,-500.0,0.00027945,2]
[327424539,1716064271726,-500.0,0.00027945,2]
[327424540,1716064271735,-500.0,0.00027945,2]
[327424541,1716064271744,-960.31,0.00027945,2]
[327424542,1716064271754,-500.0,0.00027945,2]
[327424543,1716064271763,-515.45475754,0.00027945,2]
[327424544,1716064271772,-500.0,0.00027945,2]
[327424545,1716064271781,-500.0,0.00027945,2]
[327424546,1716064271791,-871.34,0.00027945,2]
[327424547,1716064271801,-151.0,0.00027945,7]
[327424548,1716064271811,-500.0,0.00027945,2]
[327424549,1716064271821,-500.0,0.00027945,2]
[327424550,1716064271830,-500.0,0.00027945,2]
[327424551,1716064271839,-1158.36,0.00027945,2]
[327424552,1716064271852,-500.0,0.00027945,2]
[327424553,1716064271862,-500.0,0.00027945,2]
[327424554,1716064271872,-500.0,0.00027945,2]
[327424555,1716064271881,-1181.96,0.00027945,2]
[327424556,1716064271890,-500.0,0.00027945,2]
[327424557,1716064271900,-151.0,0.00027945,7]
[327424558,1716064271910,-500.0,0.00027945,2]
[327424559,1716064271921,-500.0,0.00027945,2]
[327424560,1716064271932,-500.0,0.00027945,2]
[327424561,1716064271941,-526.92473837,0.00027945,2]
[327424562,1716064271950,-500.0,0.00027945,2]
[327424563,1716064271960,-500.0,0.00027945,2]
[327424564,1716064271969,-998.19,0.00027945,2]
[327424565,1716064271978,-500.0,0.00027945,2]
[327424566,1716064271987,-151.0,0.00027945,7]
[327424567,1716064271997,-500.0,0.00027945,2]
[327424568,1716064272006,-539.2,0.00027945,2]
[327424569,1716064272016,-151.0,0.00027945,7]
[327424570,1716064272027,-577.07837433,0.00027945,2]
[327424571,1716064272039,-850.47,0.00027945,2]
[327424572,1716064272048,-500.0,0.00027945,2]
[327424573,1716064272057,-500.0,0.00027945,2]
[327424574,1716064272067,-538.6051639,0.00027945,2]
[327424575,1716064272076,-500.0,0.00027945,2]
[327424576,1716064272085,-500.0,0.00027945,2]
[327424577,1716064272094,-151.0,0.00027945,7]
[327424578,1716064272103,-500.0,0.00027945,2]
[327424579,1716064272112,-968.13,0.00027945,2]
[327424580,1716064272122,-592.44,0.00027945,2]
[327424581,1716064272132,-500.0,0.00027945,2]
[327424582,1716064272141,-508.51,0.00027945,2]
[327424583,1716064272150,-276.14714476,0.00027945,2]
[327424584,1716064272159,-500.0,0.00027945,2]
[327424585,1716064272168,-500.0,0.00027945,2]
[327424586,1716064272177,-500.0,0.00027945,2]
[327424587,1716064272187,-500.0,0.00027945,2]
[327424588,1716064272196,-500.0,0.00027945,2]
[327424589,1716064272205,-500.0,0.00027945,2]
[327424590,1716064272215,-500.0,0.00027945,2]
[327424591,1716064272226,-500.0,0.00027945,2]
[327424592,1716064272235,-822.59,0.00027945,2]
[327424593,1716064272244,-500.0,0.00027945,2]
[327424594,1716064272254,-500.0,0.00027945,2]
[327424595,1716064272262,-500.0,0.00027945,2]
[327424596,1716064272272,-150.0,0.00027945,2]
[327424597,1716064272281,-278.57973342,0.00027945,2]
[327424598,1716064272290,-500.0,0.00027945,2]
[327424599,1716064272300,-1006.53,0.00027945,2]
[327424600,1716064272309,-500.0,0.00027945,2]
[327424601,1716064272318,-500.0,0.00027945,2]
[327424602,1716064272328,-500.0,0.00027945,2]
[327424603,1716064272339,-500.0,0.00027945,2]
[327424604,1716064272352,-261.51035926,0.00027945,2]
[327424605,1716064272362,-500.0,0.00027945,2]
[327424606,1716064272371,-500.0,0.00027945,2]
[327424607,1716064272380,-500.0,0.00027945,2]
[327424608,1716064272389,-500.0,0.00027945,2]
[327424609,1716064272398,-151.0,0.00027945,7]
[327424610,1716064272408,-500.0,0.00027945,2]
[327424611,1716064272417,-500.0,0.00027945,2]
[327424612,1716064272426,-536.5876477,0.00027945,2]
[327424613,1716064272435,-500.0,0.00027945,2]
[327424614,1716064272444,-755.48,0.00027945,2]
[327424615,1716064272454,-523.15,0.00027945,2]
[327424616,1716064272463,-500.0,0.00027945,2]
[327424617,1716064272472,-500.0,0.00027945,2]
[327424618,1716064272492,-500.0,0.00027945,2]
[327424619,1716064272502,-536.58,0.00027945,2]
[327424620,1716064272512,-554.18,0.00027945,2]
[327424621,1716064272522,-500.0,0.00027945,2]
[327424622,1716064272531,-514.17,0.00027945,2]
[327424623,1716064272541,-500.0,0.00027945,2]
[327424624,1716064272551,-500.0,0.00027945,2]
[327424625,1716064272560,-500.0,0.00027945,2]
[327424626,1716064272570,-500.0,0.00027945,2]
[327424627,1716064272584,-1193.51,0.00027945,2]
[327424628,1716064272594,-2116.27,0.00027945,2]
[327424629,1716064272603,-500.0,0.00027945,2]
[327424630,1716064272612,-500.0,0.00027945,2]
[327424631,1716064272624,-500.0,0.00027945,2]
[327424632,1716064272635,-654.66,0.00027945,2]
[327424633,1716064272644,-500.0,0.00027945,2]
[327424634,1716064272654,-500.0,0.00027945,2]
[327424635,1716064272664,-500.0,0.00027945,2]
[327424636,1716064272674,-500.0,0.00027945,2]
[327424637,1716064272684,-500.0,0.00027945,2]
[327424638,1716064272694,-500.0,0.00027945,2]
[327424639,1716064272705,-500.0,0.00027945,2]
[327424640,1716064272715,-500.0,0.00027945,2]
[327424641,1716064272724,-1531.25,0.00027945,2]
[327424642,1716064272733,-500.0,0.00027945,2]
[327424643,1716064272742,-500.0,0.00027945,2]
[327424644,1716064272751,-500.0,0.00027945,2]
[327424645,1716064272760,-506.55001535,0.00027945,2]
[327424646,1716064272769,-500.0,0.00027945,2]
[327424647,1716064272778,-500.0,0.00027945,2]
[327424648,1716064272787,-1533.67,0.00027945,2]
[327424649,1716064272796,-1277.25,0.00027945,2]
[327424650,1716064272805,-500.0,0.00027945,2]
[327424651,1716064272814,-500.0,0.00027945,2]
[327424652,1716064272823,-772.1,0.00027945,2]
[327424653,1716064272832,-500.0,0.00027945,2]
[327424654,1716064272840,-500.0,0.00027945,2]
[327424655,1716064272849,-500.0,0.00027945,2]
[327424656,1716064272858,-500.0,0.00027945,2]
[327424657,1716064272867,-500.0,0.00027945,2]
[327424658,1716064272876,-854.56,0.00027945,2]
[327424659,1716064272886,-500.0,0.00027945,2]
[327424660,1716064272895,-500.0,0.00027945,2]
[327424661,1716064272904,-500.0,0.00027945,2]
[327424662,1716064272912,-1431.77,0.00027945,2]
[327424663,1716064272922,-500.0,0.00027945,2]
[327424664,1716064272931,-500.0,0.00027945,2]
[327424665,1716064272939,-500.0,0.00027945,2]
[327424666,1716064272948,-500.0,0.00027945,2]
[327424667,1716064272957,-500.0,0.00027945,2]
[327424668,1716064272966,-616.06594,0.00027945,7]
[327424669,1716064272975,-816.54,0.00027945,2]
[327424670,1716064272984,-605.41,0.00027945,2]
[327424671,1716064272992,-500.0,0.00027945,2]
[327424672,1716064273002,-500.0,0.00027945,2]
[327424673,1716064273011,-500.0,0.00027945,2]
[327424674,1716064273020,-500.0,0.00027945,2]
[327424675,1716064273030,-500.0,0.00027945,2]
[327424676,1716064273039,-500.0,0.00027945,2]
[327424677,1716064273047,-500.0,0.00027945,2]
[327424678,1716064273056,-500.0,0.00027945,2]
[327424679,1716064273065,-500.0,0.00027945,2]
[327424680,1716064273074,-1758.53,0.00027945,2]
[327424681,1716064273083,-500.0,0.00027945,2]
[327424682,1716064273092,-918.98,0.00027945,2]
[327424683,1716064273101,-702.73,0.00027945,2]
[327424684,1716064273110,-500.0,0.00027945,2]
[327424685,1716064273123,-732.95,0.00027945,2]
[327424686,1716064273133,-500.0,0.00027945,2]
[327424687,1716064273334,-500.0,0.00027945,2]
[327424688,1716064273346,-500.0,0.00027945,2]
[327424689,1716064273355,-2683.89,0.00027945,2]
[327424690,1716064273364,-544.06,0.00027945,2]
[327424691,1716064273373,-500.0,0.00027945,2]
[327424692,1716064273383,-500.0,0.00027945,2]
[327424693,1716064273392,-722.8,0.00027945,2]
[327424694,1716064273401,-500.0,0.00027945,2]
[327424695,1716064273411,-500.0,0.00027945,2]
[327424696,1716064273420,-151.0,0.00027945,7]
[327424697,1716064273430,-500.0,0.00027945,2]
[327424698,1716064273439,-500.0,0.00027945,2]
[327424699,1716064273448,-500.0,0.00027945,2]
[327424700,1716064273457,-151.0,0.00027945,7]
[327424701,1716064273467,-2066.32,0.00027945,2]
[327424702,1716064273476,-151.0,0.00027945,7]
[327424703,1716064273485,-151.0,0.00027945,7]
[327424704,1716064273494,-707.94,0.00027945,2]
[327424705,1716064273505,-500.0,0.00027945,2]
[327424706,1716064273514,-1155.3,0.00027945,2]
[327424707,1716064273523,-733.49,0.00027945,2]
[327424708,1716064273533,-500.0,0.00027945,2]
[327424709,1716064273542,-151.0,0.00027945,7]
[327424710,1716064273551,-500.0,0.00027945,2]
[327424711,1716064273560,-151.0,0.00027945,7]
[327424712,1716064273569,-500.0,0.00027945,2]
[327424713,1716064273579,-500.0,0.00027945,2]
[327424714,1716064273588,-500.0,0.00027945,2]
[327424715,1716064273597,-500.0,0.00027945,2]
[327424716,1716064273606,-632.85,0.00027945,2]
[327424717,1716064273616,-500.0,0.00027945,2]
[327424718,1716064273628,-654.28,0.00027945,2]
[327424719,1716064273638,-363.29,0.00027945,2]
[327424720,1716064273647,-500.0,0.00027945,2]
[327424721,1716064273656,-151.0,0.00027945,7]
[327424722,1716064273666,-500.0,0.00027945,2]
[327424723,1716064273677,-151.0,0.00027945,7]
[327424724,1716064273687,-518.74250618,0.00027945,2]
[327424725,1716064273696,-151.0,0.00027945,7]
[327424726,1716064273708,-1249.21,0.00027945,2]
[327424727,1716064273718,-151.0,0.00027945,7]
[327424728,1716064273727,-9291.32,0.00027945,2]
[327424729,1716064273736,-500.0,0.00027945,2]
[327424730,1716064273745,-500.0,0.00027945,2]
[327424731,1716064273755,-500.0,0.00027945,2]
[327424732,1716064273766,-2480.39,0.00027945,2]
[327424733,1716064273775,-500.0,0.00027945,2]
[327424734,1716064273784,-632.23614538,0.00027945,2]
[327424735,1716064273794,-500.0,0.00027945,2]
[327424736,1716064273803,-500.0,0.00027945,2]
[327424737,1716064273813,-10427.19,0.00027945,2]
[327424738,1716064273823,-500.0,0.00027945,2]
[327424739,1716064273834,-500.0,0.00027945,2]
[327424740,1716064273844,-949.84,0.00027945,2]
[327424741,1716064273853,-500.0,0.00027945,2]
[327424742,1716064273863,-518.04979609,0.00027945,2]
[327424743,1716064273872,-500.0,0.00027945,2]
[327424744,1716064273881,-530.26633611,0.00027945,2]
[327424745,1716064273890,-500.0,0.00027945,2]
[327424746,1716064273900,-500.0,0.00027945,2]
[327424747,1716064273909,-500.0,0.00027945,2]
[327424748,1716064273919,-921.88,0.00027945,2]
[327424749,1716064273929,-500.0,0.00027945,2]
[327424750,1716064273939,-500.0,0.00027945,2]
[327424751,1716064273949,-500.0,0.00027945,2]
[327424752,1716064273958,-500.0,0.00027945,2]
[327424753,1716064273967,-209.77,0.00027945,7]
[327424754,1716064273976,-209.77,0.00027945,7]
[327424755,1716064273985,-500.0,0.00027945,2]
[327424756,1716064273995,-444.567529,0.00027945,7]
[327424757,1716064274005,-500.0,0.00027945,2]
[327424758,1716064274016,-500.0,0.00027945,2]
[327424759,1716064274026,-444.567529,0.00027945,7]
[327424760,1716064274035,-209.77,0.00027945,7]
[327424761,1716064274046,-209.77,0.00027945,7]
[327424762,1716064274055,-151.0,0.00027945,7]
[327424763,1716064274064,-444.567529,0.00027945,7]
[327424764,1716064274074,-444.567529,0.00027945,7]
[327424765,1716064274083,-500.0,0.00027945,2]
[327424766,1716064274092,-500.0,0.00027945,2]
[327424767,1716064274101,-1095.76,0.00027945,2]
[327424768,1716064274110,-1134.01,0.00027945,2]
[327424769,1716064274119,-500.0,0.00027945,2]
[327424770,1716064274128,-500.0,0.00027945,2]
[327424771,1716064274140,-151.0,0.00027945,7]
[327424772,1716064274149,-500.0,0.00027945,2]
[327424773,1716064274158,-500.0,0.00027945,2]
[327424774,1716064274167,-500.0,0.00027945,2]
[327424775,1716064274176,-500.0,0.00027945,2]
[327424776,1716064274185,-500.0,0.00027945,2]
[327424777,1716064274195,-151.0,0.00027945,7]
[327424778,1716064274204,-500.0,0.00027945,2]
[327424779,1716064274214,-500.0,0.00027945,2]
[327424780,1716064274223,-500.0,0.00027945,2]
[327424781,1716064274233,-500.0,0.00027945,2]
[327424782,1716064274242,-500.0,0.00027945,2]
[327424783,1716064274251,-500.0,0.00027945,2]
[327424784,1716064274262,-500.0,0.00027945,2]
[327424785,1716064274272,-500.0,0.00027945,2]
[327424786,1716064274281,-500.0,0.00027945,2]
[327424787,1716064274290,-500.0,0.00027945,2]
[327424788,1716064274299,-500.0,0.00027945,2]
[327424789,1716064274308,-500.0,0.00027945,2]
[327424790,1716064274317,-500.0,0.00027945,2]
[327424791,1716064274326,-2660.58,0.00027945,2]
[327424792,1716064274335,-500.0,0.00027945,2]
[327424793,1716064274344,-500.0,0.00027945,2]
[327424794,1716064274353,-500.0,0.00027945,2]
[327424795,1716064274362,-671.4,0.00027945,2]
[327424796,1716064274372,-500.0,0.00027945,2]
[327424797,1716064274382,-1179.46,0.00027945,2]
[327424798,1716064274391,-843.15,0.00027945,2]
[327424799,1716064274401,-500.0,0.00027945,2]
[327424800,1716064274410,-500.0,0.00027945,2]
[327424801,1716064274429,-500.0,0.00027945,2]
[327424802,1716064274440,-500.0,0.00027945,2]
[327424803,1716064274449,-160.6540895,0.00027945,2]
[327424804,1716064274458,-768.71,0.00027945,2]
[327424805,1716064274468,-500.0,0.00027945,2]
[327424806,1716064274478,-500.0,0.00027945,2]
[327424807,1716064274488,-500.0,0.00027945,2]
[327424808,1716064274497,-500.0,0.00027945,2]
[327424809,1716064274507,-500.0,0.00027945,2]
[327424810,1716064274516,-500.0,0.00027945,2]
[327424811,1716064274527,-500.0,0.00027945,2]
[327424812,1716064274537,-821.47,0.00027945,2]
[327424813,1716064274548,-151.0,0.00027945,7]
[327424814,1716064274558,-151.0,0.00027945,7]
[327424815,1716064274568,-500.0,0.00027945,2]
[327424816,1716064274578,-615.08871664,0.00027945,2]
[327424817,1716064274587,-500.0,0.00027945,2]
[327424818,1716064274598,-500.0,0.00027945,2]
[327424819,1716064274609,-507.44,0.00027945,2]
[327424820,1716064274618,-500.0,0.00027945,2]
[327424821,1716064274633,-556.2254731,0.00027945,2]
[327424822,1716064274642,-310.68056806,0.00027945,2]
[327424823,1716064274652,-500.0,0.00027945,2]
[327424824,1716064274661,-500.0,0.00027945,2]
[327424825,1716064274671,-287.8264322,0.00027945,2]
[327424826,1716064274681,-865.52,0.00027945,2]
[327424827,1716064274691,-500.0,0.00027945,2]
[327424828,1716064274700,-5190.6,0.00027945,2]
[327424829,1716064274711,-500.0,0.00027945,2]
[327424830,1716064274721,-773.78,0.00027945,2]
[327424831,1716064274730,-1248.05,0.00027945,2]
[327424832,1716064274740,-500.0,0.00027945,2]
[327424833,1716064274749,-500.0,0.00027945,2]
[327424834,1716064274758,-500.0,0.00027945,2]
[327424835,1716064274768,-500.0,0.00027945,2]
[327424836,1716064274777,-500.0,0.00027945,2]
[327424837,1716064274786,-500.0,0.00027945,2]
[327424838,1716064274795,-500.0,0.00027945,2]
[327424839,1716064274804,-500.0,0.00027945,2]
[327424840,1716064274814,-500.0,0.00027945,2]
[327424841,1716064274823,-500.0,0.00027945,2]
[327424842,1716064274833,-500.0,0.00027945,2]
[327424843,1716064274841,-500.0,0.00027945,2]
[327424844,1716064274851,-500.0,0.00027945,2]
[327424845,1716064274861,-257.77803732,0.00027945,2]
[327424846,1716064274871,-500.0,0.00027945,2]
[327424847,1716064274879,-1032.87,0.00027945,2]
[327424848,1716064274890,-693.9,0.00027945,2]
[327424849,1716064274899,-500.0,0.00027945,2]
[327424850,1716064274908,-500.0,0.00027945,2]
[327424851,1716064274917,-500.0,0.00027945,2]
[327424852,1716064274927,-13966.81,0.00027945,2]
[327424853,1716064274936,-352.33534105,0.00027945,2]
[327424854,1716064274946,-158.93,0.00027945,2]
[327424855,1716064274955,-500.0,0.00027945,2]
[327424856,1716064274964,-500.0,0.00027945,2]
[327424857,1716064274973,-514.0,0.00027945,2]
[327424858,1716064274982,-500.0,0.00027945,2]
[327424859,1716064274992,-500.0,0.00027945,2]
[327424860,1716064275001,-1678.19,0.00027945,2]
[327424861,1716064275011,-877.08,0.00027945,2]
[327424862,1716064275021,-151.0,0.00027945,7]
[327424863,1716064275030,-151.0,0.00027945,7]
[327424864,1716064275039,-500.0,0.00027945,2]
[327424865,1716064275048,-500.0,0.00027945,2]
[327424866,1716064275059,-500.0,0.00027945,2]
[327424867,1716064275068,-698.55,0.00027945,2]
[327424868,1716064275078,-500.0,0.00027945,2]
[327424869,1716064275087,-248.43539133,0.00027945,2]
[327424870,1716064275096,-500.0,0.00027945,2]
[327424871,1716064275105,-500.0,0.00027945,2]
[327424872,1716064275114,-189.51761649,0.00027945,2]
[327424873,1716064275125,-660.34,0.00027945,2]
[327424874,1716064275136,-588.02,0.00027945,2]
[327424875,1716064275145,-500.0,0.00027945,2]
[327424876,1716064275155,-3096.04,0.00027945,2]
[327424877,1716064275164,-571.75,0.00027945,2]
[327424878,1716064275173,-755.18,0.00027945,2]
[327424879,1716064275182,-500.0,0.00027945,2]
[327424880,1716064275191,-500.0,0.00027945,2]
[327424881,1716064275385,-500.0,0.00027945,2]
[327424882,1716064275394,-1178.75,0.00027945,2]
[327424883,1716064275404,-500.0,0.00027945,2]
[327424884,1716064275413,-500.0,0.00027945,2]
[327424885,1716064275424,-500.0,0.00027945,2]
[327424886,1716064275435,-500.0,0.00027945,2]
[327424887,1716064275444,-500.0,0.00027945,2]
[327424888,1716064275453,-850.27,0.00027945,2]
[327424889,1716064275463,-151.0,0.00027945,7]
[327424890,1716064275472,-500.0,0.00027945,2]
[327424891,1716064275482,-500.0,0.00027945,2]
[327424892,1716064275491,-1403.77,0.00027945,2]
[327424893,1716064275501,-500.0,0.00027945,2]
[327424894,1716064275510,-1728.1,0.00027945,2]
[327424895,1716064275520,-500.0,0.00027945,2]
[327424896,1716064275530,-500.0,0.00027945,2]
[327424897,1716064275539,-2409.91,0.00027945,2]
[327424898,1716064275548,-555.9,0.00027945,2]
[327424899,1716064275558,-500.0,0.00027945,2]
[327424900,1716064275567,-556.69,0.00027945,2]
[327424901,1716064275576,-500.0,0.00027945,2]
[327424902,1716064275586,-500.0,0.00027945,2]
[327424903,1716064275595,-500.0,0.00027945,2]
[327424904,1716064275604,-500.0,0.00027945,2]
[327424905,1716064275614,-1790.4,0.00027945,2]